bitfinex/quotes_ETHUSD_20250505
["timestamp","ask_amount","ask_price","bid_price","bid_amount"]
[1746441429403,11.02217213,1814.6,1814.4,0.67316809]
[1746441429704,5.51103299,1814.6,1814.4,0.67316809]
[1746441429885,6.69647849,1814.6,1814.4,0.67316809]
[1746441430090,12.2076155,1814.6,1814.4,0.12316809]
[1746441430289,5.51116009,1814.5,1814.4,0.12316809]
[1746441430492,5.51116009,1814.5,1814.3,2.7541424]
[1746441430493,5.51146384,1814.4,1814.3,2.7541424]
[1746441430695,6.02519918,1814.4,1814.3,2.7541424]
[1746441430890,7.17883511,1814.4,1814.3,3.55]
[1746441431077,7.17883511,1814.4,1814.3,0.55]
[1746441431815,0.51373534,1814.4,1814.3,3.55]
[1746441432005,0.51373534,1814.4,1814.3,4.3052]
[1746441432503,0.51373534,1814.6,1814.4,0.55]
[1746441432802,5.51072851,1814.7,1814.4,0.55]
[1746441433005,5.51072851,1814.7,1814.5,5.76112264]
[1746441433301,5.51085638,1814.6,1814.5,3.31112264]
[1746441433666,6.06180136,1814.7,1814.6,0.55]
[1746441433864,5.51038047,1814.8,1814.6,0.55]
[1746441434081,5.5105527,1814.7,1814.6,0.55]
[1746441435004,6.02447097,1814.7,1814.6,0.55]
[1746441435367,5.51157711,1814.4,1814.2,0.55]
[1746441435572,5.5112916,1814.5,1814.3,0.55]
[1746441435777,0.51391827,1814.7,1814.4,0.55]
[1746441435778,5.5107301,1814.7,1814.4,0.55]
[1746441435978,5.51028876,1814.8,1814.4,0.55]
[1746441436396,11.02079308,1814.8,1814.4,0.55]
[1746441436589,5.51065658,1814.7,1814.4,0.55]
[1746441436785,6.30666295,1815.0,1814.6,0.55]
[1746441436991,5.50976295,1815.0,1814.7,7.97319719]
[1746441437185,0.51417831,1814.9,1814.7,7.97319719]
[1746441437403,5.50950929,1815.1,1814.8,0.55]
[1746441437404,5.50954463,1815.1,1814.8,0.55]
[1746441437713,5.50964882,1815.0,1814.8,0.55]
[1746441437911,5.50962523,1815.1,1814.8,1.40231972]
[1746441438114,5.50958859,1815.1,1815.0,0.55]
[1746441438485,6.02377965,1815.1,1815.0,0.55]
[1746441439082,0.51419106,1815.1,1815.0,0.55]
[1746441439484,6.02352938,1815.1,1815.0,0.55]
[1746441439678,1.66746521,1815.1,1814.8,0.55]
[1746441439893,6.0237472,1815.1,1815.0,5.79]
[1746441440094,6.0237472,1815.1,1815.0,0.55]
[1746441440502,0.51419106,1815.1,1815.0,1.318]
[1746441440704,0.51419106,1815.1,1814.9,5.24]
[1746441440705,5.50940925,1815.1,1814.9,5.24]
[1746441441021,5.50940925,1815.1,1815.0,0.55]
[1746441441397,5.50940925,1815.1,1815.0,5.79]
[1746441441599,6.0234934,1815.1,1815.0,5.79]
[1746441442120,7.17675665,1815.1,1815.0,5.79]
[1746441443527,7.17675665,1815.1,1815.0,5.92436001]
[1746441443825,7.17675665,1815.1,1815.0,0.68436001]
[1746441444039,7.17675665,1815.1,1815.0,5.92436001]
[1746441445637,1.6673474,1815.1,1815.0,5.92436001]
[1746441445799,7.17668572,1815.1,1815.0,0.68436001]
[1746441446128,7.17668572,1815.1,1815.0,5.92436001]
[1746441446129,6.02342247,1815.1,1815.0,5.92436001]
[1746441447126,0.51408415,1815.1,1815.0,5.92436001]
[1746441447524,5.50882713,1815.3,1815.1,0.55]
[1746441447897,5.50882713,1815.3,1815.2,0.13406238]
[1746441448150,5.50903481,1815.2,1815.1,0.55]
[1746441448436,5.50903481,1815.2,1815.1,0.68421119]
[1746441448619,6.610821,1815.2,1815.1,3.68421119]
[1746441448943,7.12514506,1815.2,1815.1,3.68421119]
[1746441449242,7.12514506,1815.2,1815.1,0.68421119]
[1746441449595,1.61611025,1815.2,1815.1,0.68421119]
[1746441449799,7.12514506,1815.2,1815.1,0.68421119]
[1746441450701,1.61611025,1815.2,1815.1,0.68421119]
[1746441450920,0.51432406,1815.2,1815.1,0.68421119]
[1746441451127,0.51432406,1815.2,1815.1,0.71776398]
[1746441451735,5.50882713,1815.3,1815.1,0.71776398]
[1746441452635,6.29665546,1815.6,1815.1,0.71776398]
[1746441452636,0.7888,1815.6,1815.1,0.71776398]
[1746441452801,5.50852424,1815.4,1815.1,0.71776398]
[1746441453006,5.50903481,1815.2,1815.1,0.71776398]
[1746441453536,6.0234044,1815.2,1815.1,0.71776398]
[1746441454509,6.0234044,1815.2,1815.1,0.16776398]
[1746441454705,6.0234044,1815.2,1814.9,5.239]
[1746441454910,5.50964187,1815.0,1814.9,5.789]
[1746441455109,6.61154026,1815.0,1814.9,5.239]
[1746441455310,5.50994545,1814.9,1814.8,6.01]
[1746441455549,5.50994545,1814.9,1814.8,6.56]
[1746441455719,5.50994545,1814.9,1814.8,11.249]
[1746441455923,6.78441504,1814.9,1814.8,11.249]
[1746441456249,8.12401057,1814.9,1814.7,2.73219719]
[1746441456546,6.02461865,1814.8,1814.7,2.73219719]
[1746441456906,11.53515419,1814.8,1814.6,5.239]
[1746441457106,5.5105527,1814.7,1814.6,5.239]
[1746441457538,5.5105527,1814.7,1814.6,5.789]
[1746441457739,7.12808427,1814.7,1814.6,5.789]
[1746441458103,7.12808427,1814.7,1814.6,0.55]
[1746441458510,7.12808427,1814.7,1814.6,0.7170209]
[1746441458946,7.12808427,1814.7,1814.6,3.45168546]
[1746441459649,0.51545139,1814.7,1814.6,8.56045365]
[1746441459808,0.51545139,1814.7,1814.6,4.22268546]
[1746441460008,5.50995728,1814.9,1814.7,0.55]
[1746441460208,5.50995728,1814.9,1814.7,3.28219719]
[1746441460439,5.50995728,1814.9,1814.8,0.1370541]
[1746441460626,6.61166648,1815.0,1814.9,0.55]
[1746441461034,7.12739737,1815.0,1814.9,0.68690525]
[1746441461234,1.61762928,1815.0,1814.9,0.68690525]
[1746441461533,6.02537276,1815.0,1814.9,5.83690525]
[1746441461931,0.51573089,1815.0,1814.9,5.83690525]
[1746441463159,6.02537276,1815.0,1814.9,5.83690525]
[1746441463454,0.51573089,1815.0,1814.9,5.83690525]
[1746441464255,5.50935164,1815.1,1814.9,5.83690525]
[1746441464417,5.50964187,1815.0,1814.9,5.83690525]
[1746441464947,0.51622425,1815.0,1814.9,5.83690525]
[1746441465122,6.02586612,1815.0,1814.9,5.83690525]
[1746441466641,6.02586612,1815.0,1814.9,0.13690525]
[1746441466843,6.85736612,1815.0,1814.9,0.13690525]
[1746441467012,5.50994545,1814.9,1814.8,0.55]
[1746441467211,5.51024906,1814.8,1814.7,2.73219719]
[1746441467429,5.51024906,1814.8,1814.7,3.28219719]
[1746441467628,6.02647331,1814.8,1814.7,3.28219719]
[1746441468257,6.02647331,1814.8,1814.7,8.43219719]
[1746441468936,6.02647331,1814.8,1814.5,2.76112264]
[1746441468937,7.18011519,1814.8,1814.5,2.76112264]
[1746441469135,6.02696239,1814.7,1814.5,7.91112264]
[1746441469332,0.51622425,1814.7,1814.5,7.91112264]
[1746441469546,6.02688906,1814.7,1814.6,3.28466456]
[1746441469754,5.51066481,1814.7,1814.6,3.28466456]
[1746441469947,6.17709548,1814.7,1814.6,3.28466456]
[1746441470148,6.69351906,1814.7,1814.6,3.28466456]
[1746441470874,1.18285425,1814.7,1814.6,3.28466456]
[1746441471164,6.02697628,1814.7,1814.6,3.28466456]
[1746441473436,0.51642358,1814.7,1814.6,3.28466456]
[1746441473682,0.51642358,1814.7,1814.6,3.39959399]
[1746441473863,6.02697628,1814.7,1814.6,3.39959399]
[1746441474167,0.51642358,1814.7,1814.6,3.39959399]
[1746441474679,6.02697628,1814.7,1814.6,3.39959399]
[1746441475132,0.51642358,1814.7,1814.6,3.39959399]
[1746441476766,6.02697628,1814.7,1814.6,3.39959399]
[1746441476970,7.1807077,1814.7,1814.6,3.39959399]
[1746441477128,6.02697628,1814.7,1814.6,3.39959399]
[1746441477334,0.51642358,1814.7,1814.6,3.39959399]
[1746441477769,5.51009516,1814.9,1814.6,3.39959399]
[1746441478346,0.51612956,1814.8,1814.6,3.39959399]
[1746441478644,6.34128762,1815.0,1814.6,3.39959399]
[1746441478645,6.34128762,1815.0,1814.6,0.66492943]
[1746441478836,5.50978762,1815.0,1814.6,6.17566376]
[1746441479036,0.51611005,1814.9,1814.6,10.87010399]
[1746441479232,0.51611005,1814.9,1814.8,0.55]
[1746441479432,5.50985504,1815.0,1814.8,0.55]
[1746441479672,5.50985504,1815.0,1814.8,0.66597338]
[1746441480040,5.50994545,1814.9,1814.8,0.66597338]
[1746441480567,6.02618489,1814.9,1814.8,0.66597338]
[1746441481372,7.17978888,1814.9,1814.8,0.66597338]
[1746441481572,1.66984343,1814.9,1814.8,0.66597338]
[1746441481772,0.51623944,1814.9,1814.8,0.66597338]
[1746441483285,5.50965485,1815.0,1814.8,0.66597338]
[1746441483486,5.50949591,1815.1,1814.8,0.66597338]
[1746441483784,5.5098943,1815.0,1814.8,0.66597338]
[1746441483984,0.51655313,1815.0,1814.9,1.3195]
[1746441484188,3.66005359,1815.6,1815.2,0.7988]
[1746441484491,3.66005359,1815.6,1815.4,0.55]
[1746441484785,9.53399235,1815.6,1815.5,0.13601208]
[1746441485154,4.54190362,1815.6,1815.5,0.13601208]
[1746441485394,10.04972472,1815.6,1815.5,0.13601208]
[1746441486484,4.54190362,1815.6,1815.5,0.68601208]
[1746441487193,4.02605895,1815.6,1815.5,0.68601208]
[1746441487558,9.53388005,1815.6,1815.5,0.68601208]
[1746441488207,5.87382646,1815.6,1815.5,0.68601208]
[1746441489493,0.36600536,1815.6,1815.5,0.68601208]
[1746441491369,5.50769849,1815.7,1815.5,0.68601208]
[1746441491570,11.01490203,1815.8,1815.5,0.68601208]
[1746441491770,5.50738823,1815.8,1815.5,0.68601208]
[1746441492088,6.33288928,1815.9,1815.5,0.68601208]
[1746441492292,6.33288928,1815.9,1815.5,1.46461208]
[1746441492489,5.50632276,1816.1,1815.5,1.46461208]
[1746441492689,5.50737886,1815.8,1815.5,1.46461208]
[1746441492892,5.5075438,1815.7,1815.5,0.68601208]
[1746441493800,5.5078211,1815.6,1815.5,5.80201208]
[1746441493957,5.5077123,1815.7,1815.5,5.80201208]
[1746441494889,6.2617908,1815.8,1815.5,5.80201208]
[1746441495466,5.5073908,1815.8,1815.5,5.80201208]
[1746441495974,5.50708325,1815.9,1815.5,5.80201208]
[1746441496177,6.33132577,1816.0,1815.6,1.377]
[1746441496363,5.50705239,1815.9,1815.8,0.55]
[1746441496675,11.83819204,1816.0,1815.8,0.71302827]
[1746441496871,6.33103807,1816.2,1815.8,0.71302827]
[1746441497114,5.50633357,1816.1,1815.8,0.71302827]
[1746441497282,11.01289069,1816.1,1815.8,0.75902268]
[1746441497608,11.01294097,1816.1,1815.8,0.75902268]
[1746441497806,11.01294097,1816.1,1815.9,5.116]
[1746441497965,5.50633357,1816.1,1816.0,0.2087749]
[1746441498500,5.50633357,1816.1,1816.0,0.7587749]
[1746441499063,5.50616169,1816.2,1816.1,0.55]
[1746441499489,5.50616169,1816.2,1816.1,0.75852713]
[1746441499689,5.50587472,1816.3,1816.1,0.75852713]
[1746441499917,5.50600154,1816.2,1816.1,0.75852713]
[1746441500118,5.50587472,1816.3,1816.1,0.75852713]
[1746441500406,5.50600154,1816.2,1816.1,0.75852713]
[1746441501012,7.41448465,1816.2,1816.1,0.20852713]
[1746441501172,5.50630471,1816.1,1816.0,5.115]
[1746441501367,12.92073811,1816.2,1816.0,5.3237749]
[1746441501572,6.31330154,1816.2,1816.1,0.55]
[1746441501800,6.31330154,1816.2,1816.1,0.75852713]
[1746441502106,6.31330154,1816.2,1816.1,0.20852713]
[1746441502617,5.50660792,1816.0,1815.9,5.665]
[1746441503715,5.50660792,1816.0,1815.9,0.55]
[1746441504006,5.50740333,1815.8,1815.7,0.55]
[1746441504206,5.50740333,1815.8,1815.7,5.115]
[1746441505810,5.50751776,1815.7,1815.6,0.55]
[1746441506114,5.50751776,1815.7,1815.5,0.8074]
[1746441506115,5.50793925,1815.6,1815.5,5.115]
[1746441506316,5.50793925,1815.6,1815.5,5.665]
[1746441507588,11.01543951,1815.7,1815.5,5.665]
[1746441507904,5.50764925,1815.7,1815.5,5.665]
[1746441508403,5.50737232,1815.8,1815.6,0.55]
[1746441508776,5.50709386,1815.9,1815.6,0.55]
[1746441508974,5.50744033,1815.8,1815.6,0.55]
[1746441509507,11.01488206,1815.8,1815.6,0.55]
[1746441509706,5.50751776,1815.7,1815.6,0.55]
[1746441510402,6.02260909,1815.7,1815.6,0.55]
[1746441513178,6.02260909,1815.7,1815.1,6.01]
[1746441513179,8.50922693,1815.2,1814.5,2.76112264]
[1746441513393,5.51075292,1814.7,1814.6,0.31097642]
[1746441513605,6.26615292,1814.7,1814.6,0.31097642]
[1746441513830,5.51145405,1814.5,1814.3,11.58307148]
[1746441514120,5.51145405,1814.5,1814.4,0.20781398]
[1746441514478,6.02727669,1814.5,1814.3,3.71392908]
[1746441514848,5.51145405,1814.5,1814.4,0.20781398]
[1746441515327,5.51146384,1814.4,1814.3,3.71392908]
[1746441515921,6.32416384,1814.4,1814.3,3.71392908]
[1746441516084,5.51237528,1814.1,1814.0,7.89368811]
[1746441516924,5.51237528,1814.1,1814.0,2.77768811]
[1746441517126,5.51267916,1814.0,1813.9,3.33075871]
[1746441517288,5.51237528,1814.1,1814.0,3.32768811]
[1746441518687,5.51237528,1814.1,1814.0,3.46403404]
[1746441519060,5.51237528,1814.1,1814.0,6.46403404]
[1746441519266,5.50257691,1814.1,1814.0,6.46403404]
[1746441520151,1.91099179,1814.4,1814.0,0.13634593]
[1746441520352,5.51237528,1814.1,1814.0,0.13634593]
[1746441520646,5.51237528,1814.1,1814.0,3.68634593]
[1746441522256,5.51237528,1814.1,1814.0,3.13634593]
[1746441522451,5.51237528,1814.1,1814.0,3.68634593]
[1746441523056,5.51218974,1814.2,1814.1,0.55]
[1746441523402,5.5119425,1814.3,1814.1,0.67260019]
[1746441523864,5.51207143,1814.2,1814.1,0.67260019]
[1746441524204,5.5119425,1814.3,1814.2,3.55]
[1746441524411,5.51154132,1814.4,1814.2,3.55]
[1746441524552,5.51154132,1814.4,1814.2,3.67288751]
[1746441525156,5.51176762,1814.3,1814.2,3.67288751]
[1746441525523,7.39829851,1814.3,1813.9,2.78075871]
[1746441525802,5.51250365,1814.1,1813.9,2.78075871]
[1746441526006,5.51267916,1814.0,1813.9,2.78075871]
[1746441528004,5.50540243,1814.0,1813.9,2.78075871]
[1746441528209,6.68561304,1814.0,1813.9,2.78075871]
[1746441528433,5.50540243,1814.0,1813.9,2.78075871]
[1746441531321,5.51250365,1814.1,1813.9,3.33075871]
[1746441531527,1.88933089,1814.3,1813.9,3.33075871]
[1746441531694,5.51267916,1814.0,1813.9,3.33075871]
[1746441532526,5.51244604,1814.1,1814.0,0.55]
[1746441532739,5.51222428,1814.2,1814.0,0.55]
[1746441533038,11.02453142,1814.2,1814.0,0.55]
[1746441533201,5.51222428,1814.2,1814.0,0.55]
[1746441533422,6.29891943,1814.3,1814.0,0.55]
[1746441533638,5.51218243,1814.2,1814.0,0.55]
[1746441534451,5.51237528,1814.1,1814.0,0.55]
[1746441535441,5.51218243,1814.2,1814.0,0.55]
[1746441535806,5.51237528,1814.1,1814.0,0.55]
[1746441536208,5.51218243,1814.2,1814.0,0.55]
[1746441537119,5.51237528,1814.1,1814.0,0.55]
[1746441537643,5.51218243,1814.2,1814.0,0.55]
[1746441538248,5.51237528,1814.1,1814.0,0.55]
[1746441538613,5.50328236,1814.1,1814.0,0.55]
[1746441540823,11.02395424,1814.3,1814.0,0.55]
[1746441541033,5.51219035,1814.2,1814.0,0.55]
[1746441541216,11.0239366,1814.3,1814.0,0.55]
[1746441541416,5.51190221,1814.3,1814.0,4.11238811]
[1746441542049,5.512216,1814.2,1814.0,4.11238811]
[1746441543058,0.51630822,1814.1,1814.0,4.11238811]
[1746441543990,6.02882575,1814.1,1814.0,2.77768811]
[1746441544148,5.51267916,1814.0,1813.9,2.78075871]
[1746441544493,6.02898738,1814.0,1813.9,3.33075871]
[1746441547285,6.02898738,1814.0,1813.9,2.78075871]
[1746441548395,6.33328313,1814.0,1813.9,2.78075871]
[1746441548971,6.02898738,1814.0,1813.9,2.78075871]
[1746441549196,7.25140815,1814.0,1813.9,2.78075871]
[1746441549615,8.02680815,1814.0,1813.9,2.78075871]
[1746441551091,8.02680815,1814.0,1813.9,2.77417326]
[1746441551399,8.02680815,1814.0,1813.8,0.4156891]
[1746441551400,8.02680815,1814.0,1813.8,3.19942773]
[1746441551981,6.02929129,1813.9,1813.8,3.74942773]
[1746441552305,7.38327041,1813.9,1813.8,3.74942773]
[1746441552510,7.38327041,1813.9,1813.1,2.73114836]
[1746441552511,10.52146186,1813.9,1813.1,2.73114836]
[1746441552816,1.72697788,1813.8,1813.0,2.79555301]
[1746441552974,5.51541558,1813.1,1813.0,2.79555301]
[1746441553582,5.51541558,1813.1,1812.9,7.71873433]
[1746441553583,5.5157198,1813.0,1812.9,7.71873433]
[1746441553783,5.5157198,1813.0,1812.9,5.0]
[1746441553970,6.03202802,1813.0,1812.9,7.71873433]
[1746441554164,0.51630822,1813.0,1812.9,7.71873433]
[1746441554674,0.51630822,1813.0,1812.9,8.26873433]
[1746441554982,5.51511322,1813.2,1813.0,1.3713]
[1746441555579,5.51432469,1813.5,1813.0,4.16685301]
[1746441555781,5.51456445,1813.4,1813.0,9.68247054]
[1746441556005,5.51456445,1813.4,1813.0,14.79534294]
[1746441556210,5.51483021,1813.3,1813.0,9.27985301]
[1746441556411,5.51456445,1813.4,1813.0,11.39727828]
[1746441556733,5.51512836,1813.2,1813.0,11.39727828]
[1746441557137,5.51481507,1813.3,1813.0,11.39727828]
[1746441557332,5.51541558,1813.1,1813.0,2.79555301]
[1746441557539,5.51541558,1813.1,1813.0,3.34555301]
[1746441557748,5.51541558,1813.1,1813.0,0.55]
[1746441559250,5.51541558,1813.1,1813.0,3.34555301]
[1746441559754,6.28733862,1813.2,1813.1,3.25482806]
[1746441561775,5.51472954,1813.4,1813.1,4.03622806]
[1746441561921,5.51437928,1813.5,1813.1,9.87687154]
[1746441562249,5.51454092,1813.4,1813.1,4.36171087]
[1746441563152,5.51503609,1813.3,1813.1,3.25482806]
[1746441563353,6.30913609,1813.3,1813.1,3.25482806]
[1746441564929,6.30913609,1813.3,1813.0,2.79555301]
[1746441565130,5.51524182,1813.2,1813.0,2.79555301]
[1746441565332,6.30913609,1813.3,1813.0,2.79555301]
[1746441565829,11.31489501,1813.6,1813.1,3.25482806]
[1746441565830,6.34630684,1813.6,1813.1,3.25482806]
[1746441566055,5.51470255,1813.4,1813.1,3.25482806]
[1746441566251,5.51481333,1813.3,1813.1,3.25482806]
[1746441566445,5.51524182,1813.2,1813.0,2.79555301]
[1746441566638,0.55152418,1813.1,1813.0,2.79555301]
[1746441566853,6.2790798,1813.3,1813.0,3.34555301]
[1746441567029,5.51516051,1813.2,1813.0,3.34555301]
[1746441567571,6.2790798,1813.3,1813.1,0.55]
[1746441567727,5.5151114,1813.2,1813.1,3.25482806]
[1746441568129,6.27912241,1813.3,1813.1,3.25482806]
[1746441568323,5.5151114,1813.2,1813.1,3.25482806]
[1746441568543,5.51468046,1813.4,1813.1,3.25482806]
[1746441568972,1.48093135,1813.4,1813.1,3.25482806]
[1746441569151,5.5151097,1813.3,1813.1,3.25482806]
[1746441569359,5.5151114,1813.2,1813.1,3.25482806]
[1746441571189,5.51541558,1813.1,1813.0,2.79555301]
[1746441571686,6.2765114,1813.2,1813.0,3.34555301]
[1746441572555,5.51541558,1813.1,1813.0,3.34555301]
[1746441573594,11.79186928,1813.2,1813.0,3.34555301]
[1746441573745,7.45569833,1813.2,1813.0,3.34555301]
[1746441575051,12.97104377,1813.2,1813.0,3.34555301]
[1746441575251,7.45569833,1813.2,1813.1,3.25482806]
[1746441575478,6.69429833,1813.2,1813.1,3.25482806]
[1746441576691,5.51541558,1813.1,1813.0,2.79555301]
[1746441576986,6.73638697,1813.1,1813.0,2.79555301]
[1746441577489,7.25227548,1813.1,1813.0,2.79555301]
[1746441580281,7.55606686,1813.1,1813.0,2.79555301]
[1746441581207,5.04065128,1813.1,1812.0,0.4156891]
[1746441581354,5.51796187,1812.3,1812.1,2.78805322]
[1746441581707,5.51845924,1812.1,1811.9,2.79927765]
[1746441582200,5.46647638,1812.0,1811.9,2.79927765]
[1746441582360,7.86770915,1812.0,1811.9,2.79927765]
[1746441582683,6.85738063,1812.0,1811.9,2.79927765]
[1746441582980,1.33861684,1812.0,1811.9,2.79927765]
[1746441583180,6.85738063,1812.0,1811.9,2.79927765]
[1746441583485,7.26669022,1812.0,1811.9,2.79927765]
[1746441584150,7.26669022,1812.0,1811.8,9.78085454]
[1746441584355,6.2457374,1811.9,1811.8,9.78085454]
[1746441584684,5.51978495,1811.7,1811.5,6.48148125]
[1746441584982,5.51998233,1811.6,1811.5,6.79038928]
[1746441585184,5.51978495,1811.7,1811.5,6.65049014]
[1746441585369,5.51942979,1811.8,1811.5,6.65049014]
[1746441586092,5.51978495,1811.7,1811.5,6.65049014]
[1746441586288,5.51942979,1811.8,1811.5,6.65049014]
[1746441586490,5.51998233,1811.6,1811.5,6.65049014]
[1746441586649,5.51978495,1811.7,1811.5,6.65049014]
[1746441586847,5.51998233,1811.6,1811.5,6.65049014]
[1746441587047,5.51978495,1811.7,1811.5,6.65049014]
[1746441587253,2.5205918,1811.6,1811.3,1e-08]
[1746441587448,8.5205918,1811.4,1811.3,2.74403129]
[1746441587674,5.5205918,1811.4,1811.3,2.74403129]
[1746441587875,5.5205918,1811.4,1811.2,0.48863636]
[1746441588066,12.87593498,1811.4,1811.3,2.77821254]
[1746441588261,8.5205918,1811.4,1811.3,2.77821254]
[1746441588475,5.52030059,1811.5,1811.3,2.77821254]
[1746441588776,5.5205918,1811.4,1811.3,2.77821254]
[1746441589158,5.93924496,1811.5,1811.3,2.77821254]
[1746441589378,5.5205918,1811.4,1811.3,2.77821254]
[1746441589986,0.42470373,1811.5,1811.3,2.72093529]
[1746441590186,11.04034594,1811.6,1811.3,2.72093529]
[1746441590386,5.52006258,1811.6,1811.3,2.72093529]
[1746441590776,5.51953013,1811.8,1811.4,3.3208951]
[1746441591086,5.51967765,1811.7,1811.6,2.72951278]
[1746441591391,5.51967765,1811.7,1811.5,2.79883947]
[1746441591392,5.51998233,1811.6,1811.5,2.79883947]
[1746441591587,5.51967765,1811.7,1811.5,2.79883947]
[1746441592096,4.74464042,1812.0,1811.5,2.79883947]
[1746441592097,5.51891177,1812.0,1811.7,0.2]
[1746441592258,5.51861587,1812.1,1811.7,0.2]
[1746441592590,5.51878417,1812.0,1811.7,2.97105539]
[1746441592887,5.51937299,1811.8,1811.7,2.97105539]
[1746441593058,5.51937299,1811.8,1811.5,2.79883947]
[1746441593260,5.51891537,1812.0,1811.7,2.77105539]
[1746441593615,16.74640273,1812.5,1811.9,2.75857893]
[1746441593928,5.51768312,1812.4,1812.0,0.2]
[1746441594212,3.42455179,1812.4,1811.9,2.95857893]
[1746441594511,11.51702504,1812.6,1812.1,0.2]
[1746441594712,11.51702504,1812.6,1812.0,2.7717442]
[1746441594713,5.51747302,1812.5,1812.2,0.36310259]
[1746441594917,0.5517473,1812.4,1812.2,3.10056015]
[1746441595089,0.5517473,1812.4,1812.2,2.93745756]
[1746441595617,6.06929309,1812.4,1812.3,2.95516153]
[1746441596319,5.51785024,1812.3,1812.1,2.78637701]
[1746441596618,6.06929309,1812.4,1812.3,2.95516153]
[1746441596786,6.06929309,1812.4,1812.2,2.93745756]
[1746441597116,8.51737725,1812.5,1812.4,2.70905494]
[1746441597415,9.0294874,1812.5,1812.2,2.73745756]
[1746441597628,9.0294874,1812.5,1812.4,2.87178435]
[1746441597916,9.0294874,1812.5,1812.4,2.70905494]
[1746441598119,5.51771206,1812.4,1812.2,2.93745756]
[1746441598313,0.55177121,1812.3,1812.2,2.73745756]
[1746441598515,0.55177121,1812.3,1812.2,2.93745756]
[1746441598716,8.51738206,1812.5,1812.2,2.93745756]
[1746441599020,0.42142057,1812.5,1812.2,3.73645756]
[1746441599203,16.74506691,1812.9,1812.4,2.70905494]
[1746441599378,10.74506691,1812.9,1812.6,2.71894238]
[1746441599581,0.5123484,1812.8,1812.6,2.72773867]
[1746441599783,1.63808993,1812.8,1812.6,2.72773867]
[1746441600006,5.51663264,1812.7,1812.6,2.72773867]
[1746441600214,5.5941527,1812.8,1812.6,2.72773867]
[1746441600584,5.5941527,1812.8,1812.3,5.779]
[1746441600585,5.51663264,1812.7,1812.4,2.70135993]
[1746441600780,5.51663264,1812.7,1812.3,5.979]
[1746441600781,5.93323935,1812.7,1812.6,2.74734848]
[1746441600985,7.08597147,1812.7,1812.6,2.74734848]
[1746441602796,5.51858556,1812.1,1811.9,2.73234381]
[1746441602983,5.5183813,1812.2,1812.0,2.93933075]
[1746441603186,6.37924921,1812.3,1812.0,2.93933075]
[1746441603583,0.86121988,1812.3,1812.0,2.93933075]
[1746441603783,0.86121988,1812.3,1812.2,2.99879744]
[1746441604022,11.5172785,1812.5,1812.2,2.99879744]
[1746441604224,0.41660671,1812.7,1812.2,3.59369744]
[1746441604422,5.51708904,1812.6,1812.4,2.70135993]
[1746441605835,8.5165005,1812.8,1812.4,2.70135993]
[1746441605998,0.85165005,1812.7,1812.4,7.25377769]
[1746441606324,5.51619772,1812.9,1812.6,2.74734848]
[1746441606499,0.41216633,1812.9,1812.6,2.74734848]
[1746441606699,5.51613068,1812.9,1812.6,2.94734848]
[1746441606926,5.51589809,1813.0,1812.6,2.94734848]
[1746441607128,5.51637448,1812.8,1812.6,2.94734848]
[1746441607333,0.55163745,1812.7,1812.6,2.94734848]
[1746441607623,5.51660772,1812.8,1812.6,2.74734848]
[1746441607823,5.51660772,1812.8,1812.6,2.94734848]
[1746441608028,5.51615195,1812.9,1812.6,2.94734848]
[1746441608210,10.30223467,1812.9,1812.6,2.94734848]
[1746441608524,5.51663264,1812.7,1812.6,2.94734848]
[1746441608745,0.3844105,1812.7,1812.6,2.94734848]
[1746441608926,5.51618732,1812.9,1812.6,2.94734848]
[1746441609112,5.51652634,1812.8,1812.6,2.94734848]
[1746441609318,4.79762634,1812.8,1812.6,2.94734848]
[1746441609519,5.51645594,1812.8,1812.6,2.74734848]
[1746441609718,0.55164559,1812.7,1812.6,2.94734848]
[1746441609920,0.22654559,1812.7,1812.6,2.94734848]
[1746441610139,0.41791605,1812.9,1812.6,2.94734848]
[1746441610414,8.51553795,1813.1,1812.8,2.7644784]
[1746441610621,11.51528825,1813.2,1812.8,2.7644784]
[1746441610841,11.51528825,1813.2,1812.8,2.9644784]
[1746441611025,8.26138825,1813.2,1812.8,2.9644784]
[1746441611227,5.5151402,1813.2,1812.8,2.9644784]
[1746441611427,9.08078019,1813.3,1813.0,0.2]
[1746441611644,5.51546987,1813.1,1812.9,2.75637953]
[1746441611851,4.7978198,1813.0,1812.9,2.75637953]
[1746441612028,6.0299427,1813.0,1812.8,2.9644784]
[1746441612219,6.030024,1813.0,1812.8,2.7644784]
[1746441612421,5.055624,1813.0,1812.8,2.9644784]
[1746441612933,5.93475518,1813.1,1812.8,2.9644784]
[1746441613654,0.41928531,1813.1,1812.8,2.9644784]
[1746441613816,9.08069452,1813.3,1812.9,0.2]
[1746441614017,3.5658,1813.3,1813.0,2.94421721]
[1746441614237,0.42054523,1813.3,1813.2,2.79259265]
[1746441614433,8.26012483,1813.6,1813.1,3.69247602]
[1746441614434,8.26019018,1813.6,1813.1,3.69247602]
[1746441614823,8.26019018,1813.6,1813.3,0.2]
[1746441615023,5.51421246,1813.5,1813.3,0.2]
[1746441615225,8.26016176,1813.6,1813.3,0.2]
[1746441615517,3.0,1813.5,1813.3,0.2]
[1746441615725,2.7461,1813.6,1813.3,0.2]
[1746441616033,3.0,1813.5,1813.3,2.96379384]
[1746441616340,5.51450314,1813.4,1813.3,2.96379384]
[1746441616651,5.51480725,1813.3,1813.2,2.79259265]
[1746441617049,5.5151114,1813.2,1813.0,2.74421721]
[1746441617254,5.5149636,1813.3,1813.0,2.74421721]
[1746441617423,5.51464023,1813.4,1813.2,2.79259265]
[1746441617856,5.51440652,1813.5,1813.2,2.79259265]
[1746441618055,5.51461742,1813.4,1813.2,2.79259265]
[1746441618255,8.66714512,1813.6,1813.2,2.79259265]
[1746441618440,3.15308059,1813.6,1813.2,2.99259265]
[1746441618651,0.40698059,1813.6,1813.4,0.2]
[1746441618855,10.81676655,1813.7,1813.4,0.2]
[1746441619047,9.51256655,1813.7,1813.4,0.2]
[1746441619241,5.51412446,1813.6,1813.3,2.96379384]
[1746441619562,3.9988,1813.7,1813.2,2.79259265]
[1746441619737,5.51459947,1813.4,1813.2,2.99259265]
[1746441620147,5.51460486,1813.4,1813.2,2.99259265]
[1746441620346,5.51462191,1813.4,1813.2,2.99259265]
[1746441621777,5.51480725,1813.3,1813.0,2.74421721]
[1746441622069,5.51480725,1813.3,1813.0,2.94421721]
[1746441622274,11.02985943,1813.3,1813.0,2.94421721]
[1746441622667,5.51480725,1813.3,1813.1,0.2]
[1746441622978,5.51463166,1813.4,1813.1,2.92837602]
[1746441623352,3.0,1813.4,1813.1,2.92837602]
[1746441624480,0.51507489,1813.3,1813.1,2.92837602]
[1746441624660,0.51507489,1813.3,1813.2,0.2]
[1746441624873,0.86658238,1813.3,1813.2,0.2]